[Event "Titled Tuesday Blitz June 21 Early 2022"]
[White "Tasev, Dejan"]
[Black "Svane, Frederik"]
[WhiteFideId "936618"]
[BlackFideId "12923044"]
[WhiteElo "2253"]
[BlackElo "2459"]
[Result "0-1"]
[Round "01"]
[TimeControl "180+1"]
[Date "2022.06.21"]
[WhiteClock "0:00:14"]
[BlackClock "0:00:12"]

1. e4 {[%clk 0:03:00]}  c5 {[%clk 0:03:00]} 2. Nf3 {[%clk 0:02:59]}  e6 {[%clk 0:03:01]} 3. b3 {[%clk 0:02:59]}  d6 {[%clk 0:03:00]} 4. Bb2 {[%clk 0:02:59]}  Nc6 {[%clk 0:03:01]} 5. d3 {[%clk 0:02:59]}  Nf6 {[%clk 0:02:59]} 6. Nbd2 {[%clk 0:02:58]}  Be7 {[%clk 0:02:59]} 7. g3 {[%clk 0:02:58]}  b5 {[%clk 0:02:56]} 8. Bg2 {[%clk 0:02:57]}  Bb7 {[%clk 0:02:56]} 9. O-O {[%clk 0:02:57]}  Qc7 {[%clk 0:02:57]} 10. a4 {[%clk 0:02:57]}  a6 {[%clk 0:02:54]} 11. axb5 {[%clk 0:02:47]}  axb5 {[%clk 0:02:55]} 12. Rxa8+ {[%clk 0:02:47]}  Bxa8 {[%clk 0:02:56]} 13. Qa1 {[%clk 0:02:47]}  O-O {[%clk 0:02:55]} 14. e5 {[%clk 0:02:47]}  Nxe5 {[%clk 0:02:47]} 15. Nxe5 {[%clk 0:02:46]}  Bxg2 {[%clk 0:02:47]} 16. Kxg2 {[%clk 0:02:43]}  dxe5 {[%clk 0:02:47]} 17. Bxe5 {[%clk 0:02:42]}  Qc6+ {[%clk 0:02:47]} 18. f3 {[%clk 0:02:39]}  Nd5 {[%clk 0:02:41]} 19. Re1 {[%clk 0:02:29]}  Ra8 {[%clk 0:02:33]} 20. Qb2 {[%clk 0:02:29]}  f6 {[%clk 0:02:33]} 21. Bf4 {[%clk 0:02:21]}  e5 {[%clk 0:02:24]} 22. Be3 {[%clk 0:02:17]}  Bf8 {[%clk 0:02:11]} 23. Bf2 {[%clk 0:02:15]}  Qa6 {[%clk 0:02:07]} 24. Ne4 {[%clk 0:01:57]}  c4 {[%clk 0:01:33]} 25. bxc4 {[%clk 0:01:47]}  bxc4 {[%clk 0:01:34]} 26. dxc4 {[%clk 0:01:41]}  Qxc4 {[%clk 0:01:34]} 27. Qb3 {[%clk 0:01:42]}  Qxb3 {[%clk 0:01:33]} 28. cxb3 {[%clk 0:01:43]}  Kf7 {[%clk 0:01:32]} 29. Rc1 {[%clk 0:01:25]}  Rb8 {[%clk 0:01:25]} 30. Rb1 {[%clk 0:01:11]}  h6 {[%clk 0:01:03]} 31. g4 {[%clk 0:01:05]}  g6 {[%clk 0:00:55]} 32. h3 {[%clk 0:01:02]}  f5 {[%clk 0:00:50]} 33. Ng3 {[%clk 0:00:59]}  Ke6 {[%clk 0:00:48]} 34. Ne2 {[%clk 0:00:55]}  Rc8 {[%clk 0:00:46]} 35. Rc1 {[%clk 0:00:54]}  Rb8 {[%clk 0:00:36]} 36. Rb1 {[%clk 0:00:51]}  Ra8 {[%clk 0:00:28]} 37. Rb2 {[%clk 0:00:49]}  Bb4 {[%clk 0:00:27]} 38. Rc2 {[%clk 0:00:47]}  Ra6 {[%clk 0:00:25]} 39. h4 {[%clk 0:00:45]}  h5 {[%clk 0:00:24]} 40. g5 {[%clk 0:00:44]}  Kd7 {[%clk 0:00:19]} 41. Nc1 {[%clk 0:00:35]}  Rc6 {[%clk 0:00:18]} 42. Rxc6 {[%clk 0:00:33]}  Nf4+ {[%clk 0:00:18]} 43. Kf1 {[%clk 0:00:32]}  Kxc6 {[%clk 0:00:19]} 44. Be3 {[%clk 0:00:31]}  Nd5 {[%clk 0:00:18]} 45. Bf2 {[%clk 0:00:32]}  e4 {[%clk 0:00:17]} 46. fxe4 {[%clk 0:00:28]}  fxe4 {[%clk 0:00:18]} 47. Ke2 {[%clk 0:00:24]}  Bd6 {[%clk 0:00:17]} 48. Na2 {[%clk 0:00:20]}  Be5 {[%clk 0:00:16]} 49. Nc1 {[%clk 0:00:19]}  Bf4 {[%clk 0:00:16]} 50. Na2 {[%clk 0:00:19]}  Kb5 {[%clk 0:00:17]} 51. Be1 {[%clk 0:00:19]}  Be5 {[%clk 0:00:17]} 52. Bf2 {[%clk 0:00:18]}  Kc6 {[%clk 0:00:16]} 53. Be1 {[%clk 0:00:18]}  Kd6 {[%clk 0:00:16]} 54. Bf2 {[%clk 0:00:18]}  Ke6 {[%clk 0:00:17]} 55. Nc1 {[%clk 0:00:18]}  Nf4+ {[%clk 0:00:17]} 56. Kf1 {[%clk 0:00:18]}  Kd5 {[%clk 0:00:16]} 57. Be1 {[%clk 0:00:17]}  Bb2 {[%clk 0:00:16]} 58. Na2 {[%clk 0:00:17]}  Ne6 {[%clk 0:00:16]} 59. Ke2 {[%clk 0:00:17]}  Nd4+ {[%clk 0:00:16]} 60. Kd1 {[%clk 0:00:18]}  e3 {[%clk 0:00:12]} 61. Nb4+ {[%clk 0:00:18]}  Ke4 {[%clk 0:00:12]} 62. Bg3 {[%clk 0:00:14]}  Bc3 {[%clk 0:00:12]} 63. Na2 {[%clk 0:00:13]}  e2+ {[%clk 0:00:12]} 64. Kc1 {[%clk 0:00:14]}  e1=Q+ {[%clk 0:00:13]} 65. Bxe1 {[%clk 0:00:14]}  Bxe1 {[%clk 0:00:14]} 66. Kd1 {[%clk 0:00:14]}  Bxh4 {[%clk 0:00:13]} 67. b4 {[%clk 0:00:15]}  Bxg5 {[%clk 0:00:14]} 68. Nc3+ {[%clk 0:00:15]}  Kd3 {[%clk 0:00:14]} 69. Nd5 {[%clk 0:00:15]}  h4 {[%clk 0:00:14]} 70. Ke1 {[%clk 0:00:15]}  Be3 {[%clk 0:00:12]} 71. Kf1 {[%clk 0:00:15]}  Ke4 {[%clk 0:00:12]} 72. Nc3+ {[%clk 0:00:14]}  Kf3 {[%clk 0:00:13]} 73. Nd5 {[%clk 0:00:14]}  g5 {[%clk 0:00:12]} 0-1


[Site "https://www.chess.com"]

[Event "Titled Tuesday Blitz June 21 Early 2022"]
[White "Tologon tegin, Semetei"]
[Black "Mangialardo, Tiago Carvalho"]
[WhiteFideId "13800574"]
[BlackFideId "2130718"]
[WhiteElo "2174"]
[BlackElo "2088"]
[Result "1-0"]
[Round "01"]
[TimeControl "180+1"]
[Date "2022.06.22"]
[WhiteClock "0:00:19"]
[BlackClock "0:00:02"]

1. e4 {[%clk 0:02:36]}  e5 {[%clk 0:02:56]} 2. Nf3 {[%clk 0:02:17]}  Nc6 {[%clk 0:02:54]} 3. Bc4 {[%clk 0:02:16]}  Bc5 {[%clk 0:02:53]} 4. O-O {[%clk 0:02:14]}  Nf6 {[%clk 0:02:44]} 5. d3 {[%clk 0:02:12]}  h6 {[%clk 0:02:35]} 6. Nc3 {[%clk 0:02:09]}  O-O {[%clk 0:02:33]} 7. h3 {[%clk 0:02:04]}  a6 {[%clk 0:02:27]} 8. a4 {[%clk 0:02:01]}  a5 {[%clk 0:02:14]} 9. Nd5 {[%clk 0:02:01]}  d6 {[%clk 0:02:12]} 10. Be3 {[%clk 0:02:00]}  Bxe3 {[%clk 0:01:26]} 11. fxe3 {[%clk 0:01:54]}  Be6 {[%clk 0:01:20]} 12. Nxf6+ {[%clk 0:01:47]}  Qxf6 {[%clk 0:01:20]} 13. Nd4 {[%clk 0:01:44]}  Qe7 {[%clk 0:01:15]} 14. Nxe6 {[%clk 0:01:34]}  fxe6 {[%clk 0:01:13]} 15. Qg4 {[%clk 0:01:34]}  Rae8 {[%clk 0:00:52]} 16. Rxf8+ {[%clk 0:01:31]}  Kxf8 {[%clk 0:00:53]} 17. Qg6 {[%clk 0:01:16]}  Kg8 {[%clk 0:00:49]} 18. Rf1 {[%clk 0:01:16]}  Nd8 {[%clk 0:00:32]} 19. g3 {[%clk 0:01:04]}  c6 {[%clk 0:00:32]} 20. d4 {[%clk 0:01:01]}  d5 {[%clk 0:00:31]} 21. Bd3 {[%clk 0:01:00]}  Rf8 {[%clk 0:00:11]} 22. Rxf8+ {[%clk 0:00:49]}  Kxf8 {[%clk 0:00:02]} 23. Kg2 {[%clk 0:00:30]}  Qg5 {[%clk 0:00:02]} 24. exd5 {[%clk 0:00:19]} 1-0


[Site "https://www.chess.com"]

[Event "Titled Tuesday Blitz June 21 Early 2022"]
[White "Toncheva, Nadya"]
[Black "Bortnyk, Mykola"]
[WhiteFideId "2924056"]
[BlackFideId "14120836"]
[WhiteElo "1888"]
[BlackElo "2582"]
[Result "0-1"]
[Round "01"]
[TimeControl "180+1"]
[Date "2022.06.21"]
[WhiteClock "0:00:02"]
[BlackClock "0:00:25"]

1. e4 {[%clk 0:02:59]}  Nf6 {[%clk 0:03:00]} 2. e5 {[%clk 0:02:59]}  Nd5 {[%clk 0:03:00]} 3. c4 {[%clk 0:02:59]}  Nb6 {[%clk 0:03:00]} 4. d4 {[%clk 0:02:59]}  d6 {[%clk 0:03:01]} 5. exd6 {[%clk 0:02:59]}  exd6 {[%clk 0:03:01]} 6. Nf3 {[%clk 0:02:57]}  Be7 {[%clk 0:03:01]} 7. h3 {[%clk 0:02:54]}  Bf5 {[%clk 0:02:59]} 8. Bd3 {[%clk 0:02:51]}  Bxd3 {[%clk 0:02:54]} 9. Qxd3 {[%clk 0:02:52]}  Nc6 {[%clk 0:02:54]} 10. O-O {[%clk 0:02:50]}  O-O {[%clk 0:02:54]} 11. Re1 {[%clk 0:02:46]}  Bf6 {[%clk 0:02:54]} 12. a3 {[%clk 0:02:30]}  Re8 {[%clk 0:02:51]} 13. Rxe8+ {[%clk 0:02:02]}  Qxe8 {[%clk 0:02:52]} 14. Be3 {[%clk 0:02:02]}  d5 {[%clk 0:02:27]} 15. c5 {[%clk 0:01:54]}  Nc4 {[%clk 0:02:27]} 16. Nc3 {[%clk 0:01:49]}  Qd7 {[%clk 0:02:08]} 17. b3 {[%clk 0:01:20]}  Nxe3 {[%clk 0:02:06]} 18. Qxe3 {[%clk 0:00:54]}  Re8 {[%clk 0:02:05]} 19. Qd2 {[%clk 0:00:52]}  Na5 {[%clk 0:01:54]} 20. Qc2 {[%clk 0:00:43]}  b6 {[%clk 0:01:43]} 21. Rd1 {[%clk 0:00:38]}  h6 {[%clk 0:01:41]} 22. Rd3 {[%clk 0:00:23]}  c6 {[%clk 0:01:35]} 23. cxb6 {[%clk 0:00:18]}  axb6 {[%clk 0:01:35]} 24. Na4 {[%clk 0:00:18]}  Bd8 {[%clk 0:01:21]} 25. Qd2 {[%clk 0:00:16]}  Qf5 {[%clk 0:01:11]} 26. Re3 {[%clk 0:00:15]}  Qb1+ {[%clk 0:01:09]} 27. Kh2 {[%clk 0:00:14]}  Bc7+ {[%clk 0:01:08]} 28. g3 {[%clk 0:00:13]}  Re4 {[%clk 0:01:07]} 29. Nc3 {[%clk 0:00:10]}  Rxe3 {[%clk 0:00:59]} 30. Nxb1 {[%clk 0:00:08]}  Rxf3 {[%clk 0:00:59]} 31. Qe2 {[%clk 0:00:08]}  Rf6 {[%clk 0:00:52]} 32. Qe8+ {[%clk 0:00:06]}  Kh7 {[%clk 0:00:52]} 33. Qe3 {[%clk 0:00:05]}  h5 {[%clk 0:00:43]} 34. Kg2 {[%clk 0:00:05]}  h4 {[%clk 0:00:43]} 35. Nd2 {[%clk 0:00:06]}  Bd6 {[%clk 0:00:41]} 36. Nf3 {[%clk 0:00:05]}  hxg3 {[%clk 0:00:36]} 37. fxg3 {[%clk 0:00:05]}  g6 {[%clk 0:00:30]} 38. Ng5+ {[%clk 0:00:05]}  Kg7 {[%clk 0:00:31]} 39. h4 {[%clk 0:00:05]}  c5 {[%clk 0:00:26]} 40. dxc5 {[%clk 0:00:04]}  bxc5 {[%clk 0:00:25]} 41. b4 {[%clk 0:00:02]}  Nc4 {[%clk 0:00:24]} 42. Qc3 {[%clk 0:00:01]}  Be5 {[%clk 0:00:25]} 43. Qc2 {[%clk 0:00:02]}  Ne3+ {[%clk 0:00:25]} 0-1


[Site "https://www.chess.com"]

[Event "Titled Tuesday Blitz June 21 Early 2022"]
[White "Wagner, Dennis"]
[Black "Begunov, Konstantin"]
[WhiteFideId "24650684"]
[BlackFideId "4118510"]
[WhiteElo "2355"]
[BlackElo "2262"]
[Result "1-0"]
[Round "01"]
[TimeControl "180+1"]
[Date "2022.06.22"]
[WhiteClock "0:00:19"]
[BlackClock "0:00:10"]

1. d4 {[%clk 0:03:00]}  d5 {[%clk 0:02:59]} 2. Nf3 {[%clk 0:03:00]}  c6 {[%clk 0:02:59]} 3. Bf4 {[%clk 0:02:57]}  Bg4 {[%clk 0:02:58]} 4. Ne5 {[%clk 0:02:56]}  Bf5 {[%clk 0:02:58]} 5. g4 {[%clk 0:02:56]}  Bc8 {[%clk 0:02:54]} 6. e3 {[%clk 0:02:52]}  Nd7 {[%clk 0:02:54]} 7. c4 {[%clk 0:02:46]}  Nxe5 {[%clk 0:02:53]} 8. Bxe5 {[%clk 0:02:46]}  Nf6 {[%clk 0:02:41]} 9. h3 {[%clk 0:02:46]}  h5 {[%clk 0:02:30]} 10. g5 {[%clk 0:02:42]}  Ne4 {[%clk 0:02:30]} 11. Nc3 {[%clk 0:02:25]}  Nxc3 {[%clk 0:02:15]} 12. bxc3 {[%clk 0:02:24]}  e6 {[%clk 0:02:14]} 13. h4 {[%clk 0:02:11]}  f6 {[%clk 0:02:03]} 14. Bf4 {[%clk 0:01:51]}  Bd6 {[%clk 0:01:53]} 15. Bxd6 {[%clk 0:01:49]}  Qxd6 {[%clk 0:01:54]} 16. gxf6 {[%clk 0:01:50]}  gxf6 {[%clk 0:01:54]} 17. Be2 {[%clk 0:01:50]}  Ke7 {[%clk 0:01:46]} 18. c5 {[%clk 0:01:42]}  Qc7 {[%clk 0:01:45]} 19. Bxh5 {[%clk 0:01:42]}  Qa5 {[%clk 0:01:42]} 20. Kd2 {[%clk 0:01:32]}  b6 {[%clk 0:01:39]} 21. cxb6 {[%clk 0:01:25]}  axb6 {[%clk 0:01:40]} 22. Qg1 {[%clk 0:01:05]}  Ba6 {[%clk 0:01:23]} 23. Qg7+ {[%clk 0:01:02]}  Kd6 {[%clk 0:01:23]} 24. Qxf6 {[%clk 0:00:36]}  Raf8 {[%clk 0:01:00]} 25. Bf7 {[%clk 0:00:34]}  Bc8 {[%clk 0:00:51]} 26. Rhg1 {[%clk 0:00:27]}  Qa3 {[%clk 0:00:44]} 27. Rac1 {[%clk 0:00:21]}  Qxa2+ {[%clk 0:00:31]} 28. Rc2 {[%clk 0:00:21]}  Qa7 {[%clk 0:00:31]} 29. Rg7 {[%clk 0:00:21]}  Qa1 {[%clk 0:00:14]} 30. Qe5+ {[%clk 0:00:19]}  Ke7 {[%clk 0:00:11]} 31. Bxe6+ {[%clk 0:00:19]}  Kd8 {[%clk 0:00:10]} 32. Qc7+ {[%clk 0:00:19]}  Ke8 {[%clk 0:00:10]} 33. Re7# {[%clk 0:00:19]} 1-0


[Site "https://www.chess.com"]

[Event "Titled Tuesday Blitz June 21 Early 2022"]
[White "Yang, Kaiqi"]
[Black "De Souza, Cristiano Gomes"]
[WhiteFideId "8604398"]
[BlackFideId "2151758"]
[WhiteElo "2373"]
[BlackElo "2068"]
[Result "1-0"]
[Round "01"]
[TimeControl "180+1"]
[Date "2022.06.22"]
[WhiteClock "0:00:15"]
[BlackClock "0:00:03"]

1. d4 {[%clk 0:02:58]}  Nf6 {[%clk 0:02:59]} 2. c4 {[%clk 0:02:58]}  g6 {[%clk 0:02:59]} 3. Nc3 {[%clk 0:02:58]}  d6 {[%clk 0:02:59]} 4. e4 {[%clk 0:02:58]}  Bg7 {[%clk 0:02:59]} 5. Be2 {[%clk 0:02:57]}  O-O {[%clk 0:02:57]} 6. Nf3 {[%clk 0:02:58]}  e5 {[%clk 0:02:55]} 7. d5 {[%clk 0:02:58]}  Nbd7 {[%clk 0:02:54]} 8. Bg5 {[%clk 0:02:57]}  h6 {[%clk 0:02:52]} 9. Bh4 {[%clk 0:02:56]}  g5 {[%clk 0:02:50]} 10. Bg3 {[%clk 0:02:56]}  Nh5 {[%clk 0:02:46]} 11. Nd2 {[%clk 0:02:41]}  Nxg3 {[%clk 0:02:45]} 12. hxg3 {[%clk 0:02:40]}  a5 {[%clk 0:02:37]} 13. Bg4 {[%clk 0:02:40]}  Nc5 {[%clk 0:02:35]} 14. Bxc8 {[%clk 0:02:35]}  Qxc8 {[%clk 0:02:34]} 15. Nf1 {[%clk 0:02:30]}  f5 {[%clk 0:02:32]} 16. Qc2 {[%clk 0:02:12]}  fxe4 {[%clk 0:02:27]} 17. Nxe4 {[%clk 0:02:05]}  Qf5 {[%clk 0:02:27]} 18. f3 {[%clk 0:02:04]}  g4 {[%clk 0:02:25]} 19. Ne3 {[%clk 0:02:02]}  Qg6 {[%clk 0:02:12]} 20. Nxg4 {[%clk 0:01:56]}  h5 {[%clk 0:02:02]} 21. Ngf2 {[%clk 0:01:47]}  Nxe4 {[%clk 0:01:55]} 22. Nxe4 {[%clk 0:01:42]}  c6 {[%clk 0:01:47]} 23. Qd3 {[%clk 0:01:38]}  Rad8 {[%clk 0:01:42]} 24. O-O-O {[%clk 0:01:32]}  Kf7 {[%clk 0:01:26]} 25. Kb1 {[%clk 0:01:18]}  c5 {[%clk 0:01:10]} 26. a4 {[%clk 0:01:11]}  b6 {[%clk 0:01:09]} 27. Ka2 {[%clk 0:01:11]}  Bf6 {[%clk 0:01:04]} 28. Rh3 {[%clk 0:01:05]}  Be7 {[%clk 0:00:57]} 29. Rdh1 {[%clk 0:00:58]}  Rh8 {[%clk 0:00:56]} 30. g4 {[%clk 0:00:57]}  h4 {[%clk 0:00:55]} 31. g3 {[%clk 0:00:47]}  hxg3 {[%clk 0:00:34]} 32. Rxh8 {[%clk 0:00:45]}  g2 {[%clk 0:00:33]} 33. R8h7+ {[%clk 0:00:33]}  Ke8 {[%clk 0:00:26]} 34. Rh8+ {[%clk 0:00:18]}  Kd7 {[%clk 0:00:20]} 35. Rxd8+ {[%clk 0:00:17]}  Kxd8 {[%clk 0:00:20]} 36. Rg1 {[%clk 0:00:17]}  Qh6 {[%clk 0:00:19]} 37. Rxg2 {[%clk 0:00:17]}  Qh1 {[%clk 0:00:11]} 38. Qc2 {[%clk 0:00:17]}  Qf1 {[%clk 0:00:07]} 39. g5 {[%clk 0:00:17]}  Qxf3 {[%clk 0:00:06]} 40. g6 {[%clk 0:00:17]}  Qf8 {[%clk 0:00:06]} 41. g7 {[%clk 0:00:17]}  Qg8 {[%clk 0:00:07]} 42. Qb3 {[%clk 0:00:15]}  Kc7 {[%clk 0:00:06]} 43. Qb5 {[%clk 0:00:15]}  Kb7 {[%clk 0:00:03]} 44. Qc6+ {[%clk 0:00:15]} 1-0


[Site "https://www.chess.com"]

[Event "Titled Tuesday Blitz June 21 Early 2022"]
[White "Zierk, Steven"]
[Black "Coto Mederos, Michel"]
[WhiteFideId "2034255"]
[BlackFideId "3508528"]
[WhiteElo "2494"]
[BlackElo "2427"]
[Result "1-0"]
[Round "01"]
[TimeControl "180+1"]
[Date "2022.06.21"]
[WhiteClock "0:01:17"]
[BlackClock "0:00:13"]

1. d4 {[%clk 0:03:00]}  d5 {[%clk 0:02:56]} 2. Nc3 {[%clk 0:02:59]}  Nf6 {[%clk 0:02:53]} 3. Bf4 {[%clk 0:02:59]}  Bf5 {[%clk 0:02:40]} 4. e3 {[%clk 0:02:56]}  e6 {[%clk 0:02:40]} 5. f3 {[%clk 0:02:53]}  Bd6 {[%clk 0:02:36]} 6. Bxd6 {[%clk 0:02:48]}  cxd6 {[%clk 0:02:33]} 7. g4 {[%clk 0:02:48]}  Bg6 {[%clk 0:02:32]} 8. h4 {[%clk 0:02:49]}  h6 {[%clk 0:02:24]} 9. Bd3 {[%clk 0:02:46]}  Bxd3 {[%clk 0:02:18]} 10. Qxd3 {[%clk 0:02:47]}  Nc6 {[%clk 0:02:17]} 11. O-O-O {[%clk 0:02:44]}  Rc8 {[%clk 0:02:13]} 12. Nge2 {[%clk 0:02:41]}  a6 {[%clk 0:02:13]} 13. g5 {[%clk 0:02:39]}  Nh5 {[%clk 0:02:00]} 14. g6 {[%clk 0:02:20]}  f5 {[%clk 0:01:39]} 15. e4 {[%clk 0:02:19]}  dxe4 {[%clk 0:01:31]} 16. fxe4 {[%clk 0:02:20]}  O-O {[%clk 0:01:31]} 17. Qf3 {[%clk 0:02:11]}  Nf6 {[%clk 0:01:22]} 18. exf5 {[%clk 0:02:11]}  Nd7 {[%clk 0:01:16]} 19. Ng3 {[%clk 0:02:09]}  Qa5 {[%clk 0:01:13]} 20. Qe3 {[%clk 0:02:00]}  e5 {[%clk 0:00:52]} 21. dxe5 {[%clk 0:01:53]}  Ncxe5 {[%clk 0:00:53]} 22. Kb1 {[%clk 0:01:49]}  Nf6 {[%clk 0:00:33]} 23. Qd4 {[%clk 0:01:35]}  Rfd8 {[%clk 0:00:27]} 24. Nge4 {[%clk 0:01:27]}  Neg4 {[%clk 0:00:22]} 25. Rhe1 {[%clk 0:01:21]}  d5 {[%clk 0:00:17]} 26. Nxf6+ {[%clk 0:01:20]}  Nxf6 {[%clk 0:00:18]} 27. Re7 {[%clk 0:01:20]}  Rc7 {[%clk 0:00:17]} 28. Rde1 {[%clk 0:01:17]}  Ne4 {[%clk 0:00:13]} 29. Qxg7# {[%clk 0:01:17]} 1-0


[Site "https://www.chess.com"]

[Event "Titled Tuesday Blitz June 21 Early 2022"]
[White "Abdrlauf, Elham"]
[Black "Tologon tegin, Semetei"]
[WhiteFideId "1533533"]
[BlackFideId "13800574"]
[WhiteElo "2782"]
[BlackElo "2565"]
[Result "1-0"]
[Round "02"]
[TimeControl "180+1"]
[Date "2022.06.22"]
[WhiteClock "0:00:05"]
[BlackClock "0:00:06"]

1. e4 {[%clk 0:02:54]}  c6 {[%clk 0:02:57]} 2. d4 {[%clk 0:02:53]}  d5 {[%clk 0:02:58]} 3. Nc3 {[%clk 0:02:53]}  dxe4 {[%clk 0:02:57]} 4. Nxe4 {[%clk 0:02:54]}  Bf5 {[%clk 0:02:57]} 5. Ng3 {[%clk 0:02:55]}  Bg6 {[%clk 0:02:57]} 6. h4 {[%clk 0:02:55]}  h6 {[%clk 0:02:57]} 7. Nf3 {[%clk 0:02:56]}  Nd7 {[%clk 0:02:57]} 8. h5 {[%clk 0:02:56]}  Bh7 {[%clk 0:02:57]} 9. Bd3 {[%clk 0:02:57]}  Bxd3 {[%clk 0:02:58]} 10. Qxd3 {[%clk 0:02:57]}  Ngf6 {[%clk 0:02:59]} 11. Bd2 {[%clk 0:02:58]}  e6 {[%clk 0:02:59]} 12. O-O-O {[%clk 0:02:58]}  Bd6 {[%clk 0:02:59]} 13. Qe2 {[%clk 0:02:57]}  Bxg3 {[%clk 0:02:57]} 14. fxg3 {[%clk 0:02:57]}  Qc7 {[%clk 0:02:52]} 15. Bf4 {[%clk 0:02:45]}  Qa5 {[%clk 0:02:50]} 16. Kb1 {[%clk 0:02:45]}  Nxh5 {[%clk 0:02:48]} 17. Bd2 {[%clk 0:02:40]}  Qd5 {[%clk 0:02:42]} 18. Qf2 {[%clk 0:02:17]}  Nhf6 {[%clk 0:02:39]} 19. Bf4 {[%clk 0:02:16]}  O-O-O {[%clk 0:02:20]} 20. Qe2 {[%clk 0:02:10]}  Rhe8 {[%clk 0:02:16]} 21. a3 {[%clk 0:01:52]}  Qe4 {[%clk 0:02:00]} 22. Qd2 {[%clk 0:01:50]}  Nd5 {[%clk 0:01:53]} 23. Rhe1 {[%clk 0:01:46]}  Qf5 {[%clk 0:01:52]} 24. Bd6 {[%clk 0:01:33]}  N7b6 {[%clk 0:01:48]} 25. Bc5 {[%clk 0:01:33]}  f6 {[%clk 0:01:43]} 26. Qa5 {[%clk 0:01:27]}  Kb8 {[%clk 0:01:42]} 27. Nd2 {[%clk 0:01:07]}  Nc8 {[%clk 0:01:36]} 28. Nc4 {[%clk 0:00:50]}  b6 {[%clk 0:01:04]} 29. Qa4 {[%clk 0:00:50]}  bxc5 {[%clk 0:01:03]} 30. Na5 {[%clk 0:00:51]}  Nde7 {[%clk 0:00:56]} 31. g4 {[%clk 0:00:41]}  Qd5 {[%clk 0:00:52]} 32. c4 {[%clk 0:00:40]}  Qd7 {[%clk 0:00:46]} 33. dxc5 {[%clk 0:00:31]}  Qc7 {[%clk 0:00:44]} 34. Rxd8 {[%clk 0:00:31]}  Rxd8 {[%clk 0:00:42]} 35. Rxe6 {[%clk 0:00:31]}  Rd4 {[%clk 0:00:37]} 36. Rxc6 {[%clk 0:00:21]}  Rd1+ {[%clk 0:00:22]} 37. Ka2 {[%clk 0:00:10]}  Nxc6 {[%clk 0:00:21]} 38. Nxc6+ {[%clk 0:00:11]}  Ka8 {[%clk 0:00:20]} 39. Nxa7 {[%clk 0:00:11]}  Nxa7 {[%clk 0:00:18]} 40. Qxd1 {[%clk 0:00:10]}  Qxc5 {[%clk 0:00:19]} 41. Qd8+ {[%clk 0:00:09]}  Nc8 {[%clk 0:00:19]} 42. Qd3 {[%clk 0:00:07]}  Kb7 {[%clk 0:00:19]} 43. b4 {[%clk 0:00:07]}  Qc6 {[%clk 0:00:19]} 44. Kb3 {[%clk 0:00:05]}  Nb6 {[%clk 0:00:17]} 45. b5 {[%clk 0:00:04]}  Qxg2 {[%clk 0:00:17]} 46. a4 {[%clk 0:00:03]}  Qxg4 {[%clk 0:00:15]} 47. a5 {[%clk 0:00:02]}  Nd7 {[%clk 0:00:16]} 48. Kb4 {[%clk 0:00:01]}  Qe6 {[%clk 0:00:13]} 49. a6+ {[%clk 0:00:02]}  Kc7 {[%clk 0:00:12]} 50. c5 {[%clk 0:00:02]}  Qe7 {[%clk 0:00:10]} 51. b6+ {[%clk 0:00:02]}  Kc8 {[%clk 0:00:10]} 52. Qd5 {[%clk 0:00:02]}  Nxb6 {[%clk 0:00:08]} 53. Qc6+ {[%clk 0:00:03]}  Qc7 {[%clk 0:00:08]} 54. Qe8+ {[%clk 0:00:02]}  Qd8 {[%clk 0:00:07]} 55. Qxd8+ {[%clk 0:00:02]}  Kxd8 {[%clk 0:00:08]} 56. cxb6 {[%clk 0:00:03]}  Kc8 {[%clk 0:00:09]} 57. Kb5 {[%clk 0:00:03]}  h5 {[%clk 0:00:09]} 58. Kc6 {[%clk 0:00:04]}  Kb8 {[%clk 0:00:07]} 59. b7 {[%clk 0:00:04]}  h4 {[%clk 0:00:06]} 60. Kb6 {[%clk 0:00:05]}  h3 {[%clk 0:00:06]} 61. a7# {[%clk 0:00:05]} 1-0


[Site "https://www.chess.com"]

[Event "Titled Tuesday Blitz June 21 Early 2022"]
[White "Agasarov, Benik"]
[Black "Sarkar, Justin"]
[WhiteFideId "13314823"]
[BlackFideId "2010011"]
[WhiteElo "2640"]
[BlackElo "2020"]
[Result "1-0"]
[Round "02"]
[TimeControl "180+1"]
[Date "2022.06.22"]
[WhiteClock "0:01:33"]
[BlackClock "0:00:01"]

1. e4 {[%clk 0:03:00]}  e5 {[%clk 0:02:49]} 2. Nf3 {[%clk 0:03:00]}  Nc6 {[%clk 0:02:49]} 3. Bb5 {[%clk 0:02:55]}  a6 {[%clk 0:02:44]} 4. Ba4 {[%clk 0:02:55]}  Nf6 {[%clk 0:02:44]} 5. O-O {[%clk 0:02:55]}  Be7 {[%clk 0:02:43]} 6. Re1 {[%clk 0:02:52]}  b5 {[%clk 0:02:42]} 7. Bb3 {[%clk 0:02:52]}  d6 {[%clk 0:02:42]} 8. h3 {[%clk 0:02:47]}  Na5 {[%clk 0:02:37]} 9. d4 {[%clk 0:02:46]}  exd4 {[%clk 0:02:21]} 10. e5 {[%clk 0:02:22]}  dxe5 {[%clk 0:02:18]} 11. Nxe5 {[%clk 0:02:19]}  O-O {[%clk 0:01:58]} 12. Bg5 {[%clk 0:02:13]}  Bb7 {[%clk 0:01:50]} 13. Nd2 {[%clk 0:02:04]}  c5 {[%clk 0:01:42]} 14. Bxf6 {[%clk 0:01:53]}  Bxf6 {[%clk 0:01:41]} 15. Nxf7 {[%clk 0:01:53]}  Rxf7 {[%clk 0:01:38]} 16. Bxf7+ {[%clk 0:01:54]}  Kxf7 {[%clk 0:01:38]} 17. Qh5+ {[%clk 0:01:55]}  Kg8 {[%clk 0:01:35]} 18. Qxc5 {[%clk 0:01:55]}  Qd5 {[%clk 0:01:18]} 19. Ne4 {[%clk 0:01:51]}  Qxc5 {[%clk 0:00:49]} 20. Nxc5 {[%clk 0:01:52]}  Bc6 {[%clk 0:00:49]} 21. Re6 {[%clk 0:01:49]}  Bd5 {[%clk 0:00:12]} 22. Rd6 {[%clk 0:01:41]}  Bf7 {[%clk 0:00:10]} 23. Rxa6 {[%clk 0:01:36]}  Rxa6 {[%clk 0:00:08]} 24. Nxa6 {[%clk 0:01:37]}  Nc4 {[%clk 0:00:06]} 25. Nc7 {[%clk 0:01:34]}  Nxb2 {[%clk 0:00:03]} 26. Nxb5 {[%clk 0:01:34]}  Na4 {[%clk 0:00:02]} 27. Rd1 {[%clk 0:01:33]}  Nc3 {[%clk 0:00:01]} 28. Nxc3 {[%clk 0:01:33]}  dxc3 {[%clk 0:00:01]} 29. a4 {[%clk 0:01:34]}  Bc4 {[%clk 0:00:01]} 30. a5 {[%clk 0:01:33]}  Kf7 {[%clk 0:00:01]} 31. Rd6 {[%clk 0:01:33]}  Ke7 {[%clk 0:00:01]} 32. Rc6 {[%clk 0:01:33]} 1-0


[Site "https://www.chess.com"]